[Event "*** Titled Tuesday Blitz"]
[Site "Chess.com"]
[Date "2020.04.07"]
[Round "5"]
[White "SoltaniciR"]
[Black "MilanovicDan"]
[Result "0-1"]
[WhiteElo "2629"]
[BlackElo "2385"]
[TimeControl "180+1"]
[EndTime "13:55:47 PDT"]
[Termination "MilanovicDan won by resignation"]

1. e4 {[%clk 0:03:00.9]} 1... d5 {[%clk 0:02:59.6]} 2. exd5 {[%clk 0:03:00.2]}
2... Qxd5 {[%clk 0:03:00]} 3. Nc3 {[%clk 0:03:00.2]} 3... Qd6 {[%clk 0:03:00.2]}
4. d4 {[%clk 0:02:58.7]} 4... Nf6 {[%clk 0:03:00]} 5. Nf3 {[%clk 0:02:52.4]}
5... Bg4 {[%clk 0:02:59.5]} 6. h3 {[%clk 0:02:51.3]} 6... Bxf3 {[%clk
0:02:58.7]} 7. Qxf3 {[%clk 0:02:51.1]} 7... c6 {[%clk 0:02:59]} 8. Be3 {[%clk
0:02:41.8]} 8... e6 {[%clk 0:02:58.5]} 9. O-O-O {[%clk 0:02:36.9]} 9... Nbd7
{[%clk 0:02:58.4]} 10. g4 {[%clk 0:02:36.1]} 10... Be7 {[%clk 0:02:56.6]} 11.
Kb1 {[%clk 0:02:11.1]} 11... Qc7 {[%clk 0:02:55.4]} 12. h4 {[%clk 0:02:09]}
12... a5 {[%clk 0:02:47.4]} 13. h5 {[%clk 0:01:59.7]} 13... h6 {[%clk
0:02:42.2]} 14. g5 {[%clk 0:01:59.6]} 14... hxg5 {[%clk 0:02:41.5]} 15. Bxg5
{[%clk 0:02:00.5]} 15... a4 {[%clk 0:02:37.2]} 16. h6 {[%clk 0:01:24.7]} 16...
g6 {[%clk 0:02:36.2]} 17. Ne4 {[%clk 0:01:17.9]} 17... Nxe4 {[%clk 0:02:32.4]}
18. Bxe7 {[%clk 0:01:17.8]} 18... Kxe7 {[%clk 0:02:32]} 19. Qxe4 {[%clk
0:01:17.6]} 19... Nf6 {[%clk 0:02:20.4]} 20. Qf3 {[%clk 0:01:14.4]} 20... a3
{[%clk 0:02:19.4]} 21. b3 {[%clk 0:01:13.2]} 21... Qa5 {[%clk 0:02:18.6]} 22.
Bc4 {[%clk 0:00:54.9]} 22... Qf5 {[%clk 0:02:14.4]} 23. Qg3 {[%clk 0:00:53.3]}
23... Rad8 {[%clk 0:02:07.2]} 24. Rd3 {[%clk 0:00:32.8]} 24... Ne4 {[%clk
0:02:02.8]} 25. Qh2 {[%clk 0:00:23.1]} 25... Qxf2 {[%clk 0:01:51.1]} 26. Qc7+
{[%clk 0:00:19.2]} 26... Rd7 {[%clk 0:01:50.1]} 27. Qe5 {[%clk 0:00:14.8]} 27...
Nf6 {[%clk 0:01:38.4]} 28. d5 {[%clk 0:00:12.8]} 28... cxd5 {[%clk 0:01:33.2]}
29. Bb5 {[%clk 0:00:12.8]} 29... Rd6 {[%clk 0:01:30.2]} 30. Rdd1 {[%clk
0:00:12]} 30... Qf5 {[%clk 0:01:20.4]} 31. Qc3 {[%clk 0:00:12.2]} 31... d4
{[%clk 0:01:18]} 32. Qc7+ {[%clk 0:00:11.4]} 32... Nd7 {[%clk 0:01:18]} 33. Rhf1
{[%clk 0:00:11.4]} 33... Qxb5 {[%clk 0:01:16.9]} 34. Rxf7+ {[%clk 0:00:08.6]}
34... Kxf7 {[%clk 0:01:16.8]} 35. Qxd6 {[%clk 0:00:09]} 35... Rxh6 {[%clk
0:01:03.4]} 36. Qf4+ {[%clk 0:00:08.8]} 36... Kg7 {[%clk 0:01:03]} 37. Qxd4+
{[%clk 0:00:09.3]} 37... Nf6 {[%clk 0:01:00.5]} 38. c4 {[%clk 0:00:08.3]} 38...
Qc6 {[%clk 0:00:59.1]} 0-1

[Event "*** Titled Tuesday Blitz"]
[Site "Chess.com"]
[Date "2020.04.07"]
[Round "5"]
[White "MixMasterChess"]
[Black "oneshot007"]
[Result "1-0"]
[WhiteElo "2112"]
[BlackElo "2401"]
[TimeControl "180+1"]
[EndTime "13:55:47 PDT"]
[Termination "MixMasterChess won by resignation"]

1. e4 {[%clk 0:03:00.9]} 1... e5 {[%clk 0:02:59.5]} 2. Nc3 {[%clk 0:03:01.3]}
2... Nc6 {[%clk 0:02:59.3]} 3. g3 {[%clk 0:03:01.6]} 3... Nf6 {[%clk 0:02:59.4]}
4. Bg2 {[%clk 0:03:01.9]} 4... Bc5 {[%clk 0:02:55.8]} 5. Nge2 {[%clk 0:03:00.5]}
5... O-O {[%clk 0:02:55.8]} 6. O-O {[%clk 0:02:59.6]} 6... d6 {[%clk 0:02:55.9]}
7. d3 {[%clk 0:03:00]} 7... h6 {[%clk 0:02:51.9]} 8. Be3 {[%clk 0:02:59.7]} 8...
a5 {[%clk 0:02:43.9]} 9. Bxc5 {[%clk 0:02:58.2]} 9... dxc5 {[%clk 0:02:43.3]}
10. f4 {[%clk 0:02:49.7]} 10... Bg4 {[%clk 0:02:42.9]} 11. h3 {[%clk 0:02:49.6]}
11... Bxe2 {[%clk 0:02:42.4]} 12. Nxe2 {[%clk 0:02:50.5]} 12... a4 {[%clk
0:02:24.9]} 13. fxe5 {[%clk 0:02:50]} 13... Nxe5 {[%clk 0:02:24.5]} 14. Rf5
{[%clk 0:02:50.5]} 14... Qd6 {[%clk 0:02:13.8]} 15. Qd2 {[%clk 0:02:44.9]} 15...
Rae8 {[%clk 0:01:48.1]} 16. Raf1 {[%clk 0:02:42.6]} 16... Ned7 {[%clk
0:01:31.2]} 17. Qc3 {[%clk 0:02:29.9]} 17... b5 {[%clk 0:01:25.5]} 18. Qa5
{[%clk 0:02:24.6]} 18... c6 {[%clk 0:01:22]} 19. Qe1 {[%clk 0:02:08.7]} 19...
Re5 {[%clk 0:01:18]} 20. Qf2 {[%clk 0:02:01]} 20... Rfe8 {[%clk 0:01:15.7]} 21.
g4 {[%clk 0:01:58.2]} 21... R8e7 {[%clk 0:00:56.9]} 22. Qh4 {[%clk 0:01:57.5]}
22... Nf8 {[%clk 0:00:51.7]} 23. Qg3 {[%clk 0:01:43.7]} 23... Ng6 {[%clk
0:00:45.2]} 24. R1f2 {[%clk 0:01:34.6]} 24... Qc7 {[%clk 0:00:42.7]} 25. h4
{[%clk 0:01:33.1]} 25... Rxf5 {[%clk 0:00:41.3]} 26. exf5 {[%clk 0:01:26.6]}
26... Qxg3 {[%clk 0:00:35.4]} 27. Nxg3 {[%clk 0:01:26.6]} 27... Nxh4 {[%clk
0:00:36]} 28. Bxc6 {[%clk 0:01:14.9]} 28... Re3 {[%clk 0:00:27.8]} 29. Ne4
{[%clk 0:01:06.5]} 29... Nxg4 {[%clk 0:00:23.4]} 30. Rf4 {[%clk 0:00:52]} 30...
Ne5 {[%clk 0:00:22]} 31. Rxh4 {[%clk 0:00:48.3]} 31... Nxc6 {[%clk 0:00:19.2]}
32. f6 {[%clk 0:00:48.2]} 32... gxf6 {[%clk 0:00:15.2]} 33. Kf2 {[%clk 0:00:45]}
33... Nd4 {[%clk 0:00:05.7]} 34. Rg4+ {[%clk 0:00:41.7]} 1-0

[Event "*** Titled Tuesday Blitz"]
[Site "Chess.com"]
[Date "2020.04.07"]
[Round "5"]
[White "SerGo055"]
[Black "Aygehovit1992"]
[Result "1-0"]
[WhiteElo "2542"]
[BlackElo "2715"]
[TimeControl "180+1"]
[EndTime "13:55:49 PDT"]
[Termination "SerGo055 won by resignation"]

1. d4 {[%clk 0:02:50.1]} 1... Nf6 {[%clk 0:02:59.6]} 2. Nf3 {[%clk 0:02:49.3]}
2... c5 {[%clk 0:02:59.7]} 3. c3 {[%clk 0:02:49.1]} 3... g6 {[%clk 0:02:59.3]}
4. Bf4 {[%clk 0:02:48.2]} 4... Bg7 {[%clk 0:02:59.1]} 5. e3 {[%clk 0:02:47.9]}
5... d6 {[%clk 0:02:58.2]} 6. h3 {[%clk 0:02:46.2]} 6... O-O {[%clk 0:02:58.3]}
7. Nbd2 {[%clk 0:02:45.4]} 7... Nbd7 {[%clk 0:02:55.4]} 8. Be2 {[%clk
0:02:43.9]} 8... b6 {[%clk 0:02:55.8]} 9. O-O {[%clk 0:02:43.4]} 9... Bb7 {[%clk
0:02:56.4]} 10. a4 {[%clk 0:02:43]} 10... a6 {[%clk 0:02:56.8]} 11. Bh2 {[%clk
0:02:43.2]} 11... Rc8 {[%clk 0:02:56.9]} 12. Re1 {[%clk 0:02:40.3]} 12... Qc7
{[%clk 0:02:55.4]} 13. Bf1 {[%clk 0:02:19.1]} 13... Qb8 {[%clk 0:02:54.9]} 14.
e4 {[%clk 0:02:15.4]} 14... e5 {[%clk 0:02:50]} 15. dxe5 {[%clk 0:02:02]} 15...
Nxe5 {[%clk 0:02:49.9]} 16. Qc2 {[%clk 0:01:52.8]} 16... Nxf3+ {[%clk
0:02:42.7]} 17. Nxf3 {[%clk 0:01:49.5]} 17... Rfe8 {[%clk 0:02:43.1]} 18. e5
{[%clk 0:01:39.7]} 18... dxe5 {[%clk 0:02:43.2]} 19. Rxe5 {[%clk 0:01:18.9]}
19... Rxe5 {[%clk 0:02:37.8]} 20. Nxe5 {[%clk 0:01:17.6]} 20... Qa8 {[%clk
0:02:36.7]} 21. Nc4 {[%clk 0:01:10]} 21... Be4 {[%clk 0:02:28.5]} 22. Qb3 {[%clk
0:01:01.7]} 22... Nd7 {[%clk 0:01:41.1]} 23. Nxb6 {[%clk 0:00:48.5]} 23... Nxb6
{[%clk 0:01:39.9]} 24. Qxb6 {[%clk 0:00:48]} 24... c4 {[%clk 0:01:40.6]} 25. Rd1
{[%clk 0:00:39.9]} 25... Bc2 {[%clk 0:01:40.3]} 26. Rd7 {[%clk 0:00:28.2]} 26...
Bxa4 {[%clk 0:01:39.8]} 27. Ra7 {[%clk 0:00:24.4]} 27... Qc6 {[%clk 0:01:16.7]}
28. Rxa6 {[%clk 0:00:16.2]} 28... Qxb6 {[%clk 0:01:13.2]} 29. Rxb6 {[%clk
0:00:16.1]} 29... Bb3 {[%clk 0:01:13.8]} 30. Rb8 {[%clk 0:00:13.9]} 30... Rxb8
{[%clk 0:01:12.3]} 31. Bxb8 {[%clk 0:00:14.8]} 31... Bh6 {[%clk 0:01:12.8]} 32.
Bd6 {[%clk 0:00:15.3]} 32... Bc1 {[%clk 0:01:12]} 33. Ba3 {[%clk 0:00:15.8]}
33... f5 {[%clk 0:01:12.3]} 34. f3 {[%clk 0:00:15.7]} 34... Kf7 {[%clk
0:01:10.5]} 35. Kf2 {[%clk 0:00:15.9]} 35... f4 {[%clk 0:01:10.6]} 36. Be2
{[%clk 0:00:14.9]} 36... Ke6 {[%clk 0:01:09.4]} 37. Ke1 {[%clk 0:00:12.9]} 37...
g5 {[%clk 0:01:07.5]} 38. Bd1 {[%clk 0:00:13]} 38... Ba2 {[%clk 0:01:04.2]} 39.
Bc2 {[%clk 0:00:12.9]} 39... h5 {[%clk 0:01:03.1]} 40. Kd1 {[%clk 0:00:12.9]}
40... Be3 {[%clk 0:01:03.4]} 41. Bf8 {[%clk 0:00:12.1]} 41... Bc5 {[%clk
0:00:51.6]} 42. Bxc5 {[%clk 0:00:10.8]} 1-0

[Event "*** Titled Tuesday Blitz"]
[Site "Chess.com"]
[Date "2020.04.07"]
[Round "5"]
[White "Fins0905"]
[Black "AminMolaei"]
[Result "1-0"]
[WhiteElo "2728"]
[BlackElo "2523"]
[TimeControl "180+1"]
[EndTime "13:55:54 PDT"]
[Termination "Fins0905 won by resignation"]

1. e4 {[%clk 0:03:00.9]} 1... e5 {[%clk 0:02:54.7]} 2. Nf3 {[%clk 0:02:59.8]}
2... Nc6 {[%clk 0:02:54.9]} 3. Bb5 {[%clk 0:02:58.7]} 3... Nf6 {[%clk
0:02:54.9]} 4. d3 {[%clk 0:02:56.6]} 4... Bd6 {[%clk 0:02:54.4]} 5. Nbd2 {[%clk
0:02:53.4]} 5... O-O {[%clk 0:02:53.6]} 6. Nc4 {[%clk 0:02:53.4]} 6... Bc5
{[%clk 0:02:42.3]} 7. Bxc6 {[%clk 0:02:43.3]} 7... bxc6 {[%clk 0:02:42]} 8.
Ncxe5 {[%clk 0:02:41.4]} 8... d5 {[%clk 0:02:41.8]} 9. exd5 {[%clk 0:02:38.1]}
9... cxd5 {[%clk 0:02:36.6]} 10. O-O {[%clk 0:02:37.2]} 10... h6 {[%clk
0:02:35.9]} 11. Re1 {[%clk 0:02:30.8]} 11... Re8 {[%clk 0:02:35.5]} 12. h3
{[%clk 0:02:29.4]} 12... Bb7 {[%clk 0:02:29.9]} 13. d4 {[%clk 0:02:21.7]} 13...
Bd6 {[%clk 0:02:29.6]} 14. Nd3 {[%clk 0:02:18.1]} 14... Ne4 {[%clk 0:02:26.7]}
15. Bf4 {[%clk 0:02:15.1]} 15... Bf8 {[%clk 0:02:22.8]} 16. c3 {[%clk
0:02:03.4]} 16... f6 {[%clk 0:02:19.6]} 17. Qc2 {[%clk 0:01:49.7]} 17... g5
{[%clk 0:02:15.1]} 18. Be3 {[%clk 0:01:43.8]} 18... h5 {[%clk 0:02:12.1]} 19.
Nc5 {[%clk 0:01:38.1]} 19... Bc8 {[%clk 0:02:08.4]} 20. Nd2 {[%clk 0:01:25.9]}
20... Bxc5 {[%clk 0:01:20.8]} 21. dxc5 {[%clk 0:01:15.4]} 21... Bf5 {[%clk
0:01:17.6]} 22. Bd4 {[%clk 0:01:06.4]} 22... Kf7 {[%clk 0:01:06.8]} 23. Nxe4
{[%clk 0:00:56]} 23... Bxe4 {[%clk 0:01:05.9]} 24. Qd2 {[%clk 0:00:51.8]} 24...
c6 {[%clk 0:01:04.3]} 25. f3 {[%clk 0:00:51]} 25... Bf5 {[%clk 0:01:01.4]} 26.
h4 {[%clk 0:00:50.7]} 26... Rg8 {[%clk 0:00:49.4]} 27. hxg5 {[%clk 0:00:47.6]}
27... Rxg5 {[%clk 0:00:50.3]} 28. Qf4 {[%clk 0:00:47.1]} 28... Qd7 {[%clk
0:00:48.2]} 29. Re2 {[%clk 0:00:35.8]} 29... Rag8 {[%clk 0:00:45.3]} 30. Rae1
{[%clk 0:00:32.7]} 30... a5 {[%clk 0:00:23.5]} 31. Kh1 {[%clk 0:00:25.2]} 31...
h4 {[%clk 0:00:21.6]} 32. Re7+ {[%clk 0:00:22]} 32... Qxe7 {[%clk 0:00:20.9]}
33. Rxe7+ {[%clk 0:00:22.9]} 33... Kxe7 {[%clk 0:00:21.6]} 34. Qd6+ {[%clk
0:00:23.2]} 34... Ke8 {[%clk 0:00:21.6]} 35. Bxf6 {[%clk 0:00:21.8]} 35... Kf7
{[%clk 0:00:17.6]} 36. Qe7+ {[%clk 0:00:19.4]} 1-0

[Event "*** Titled Tuesday Blitz"]
[Site "Chess.com"]
[Date "2020.04.07"]
[Round "5"]
[White "Resignify"]
[Black "dmosesov"]
[Result "0-1"]
[WhiteElo "2218"]
[BlackElo "2494"]
[TimeControl "180+1"]
[EndTime "13:55:54 PDT"]
[Termination "dmosesov won by checkmate"]

1. Nf3 {[%clk 0:03:00.9]} 1... c5 {[%clk 0:02:59.6]} 2. g3 {[%clk 0:03:00.8]}
2... g6 {[%clk 0:02:59.1]} 3. Bg2 {[%clk 0:03:00.8]} 3... Bg7 {[%clk 0:02:59.5]}
4. d3 {[%clk 0:03:01.4]} 4... Nc6 {[%clk 0:02:59.8]} 5. O-O {[%clk 0:03:01.6]}
5... e6 {[%clk 0:02:59.2]} 6. e4 {[%clk 0:02:59.1]} 6... Nge7 {[%clk 0:02:58.9]}
7. Nbd2 {[%clk 0:02:56.7]} 7... d6 {[%clk 0:02:58.4]} 8. a4 {[%clk 0:02:52.2]}
8... O-O {[%clk 0:02:58]} 9. c3 {[%clk 0:02:45.9]} 9... Rb8 {[%clk 0:02:57.3]}
10. Nc4 {[%clk 0:02:35.3]} 10... d5 {[%clk 0:02:48.6]} 11. Na3 {[%clk
0:02:33.8]} 11... b6 {[%clk 0:02:45.7]} 12. Re1 {[%clk 0:02:27.7]} 12... Ba6
{[%clk 0:02:42.8]} 13. Bf4 {[%clk 0:02:19.2]} 13... e5 {[%clk 0:02:37.7]} 14.
exd5 {[%clk 0:02:13.1]} 14... exf4 {[%clk 0:02:30]} 15. dxc6 {[%clk 0:02:09.9]}
15... fxg3 {[%clk 0:02:30.4]} 16. hxg3 {[%clk 0:02:01.4]} 16... Nxc6 {[%clk
0:02:30.6]} 17. Nb5 {[%clk 0:01:52.9]} 17... Bb7 {[%clk 0:02:26]} 18. Qe2 {[%clk
0:01:17.9]} 18... Qd7 {[%clk 0:02:22.9]} 19. Rad1 {[%clk 0:01:11]} 19... Rfe8
{[%clk 0:02:19]} 20. Qc2 {[%clk 0:01:05.2]} 20... Rxe1+ {[%clk 0:02:17.5]} 21.
Rxe1 {[%clk 0:01:06.1]} 21... Rd8 {[%clk 0:02:17.6]} 22. Ng5 {[%clk 0:00:46.6]}
22... h6 {[%clk 0:02:12.2]} 23. Bh3 {[%clk 0:00:25.4]} 23... Qxd3 {[%clk
0:01:40.3]} 24. Re8+ {[%clk 0:00:20.6]} 24... Bf8 {[%clk 0:01:40.2]} 25. Qxd3
{[%clk 0:00:16.5]} 25... Rxd3 {[%clk 0:01:41.1]} 26. Nh7 {[%clk 0:00:09.5]}
26... Rd1+ {[%clk 0:01:38]} 27. Kh2 {[%clk 0:00:08.8]} 27... Kxh7 {[%clk
0:01:33.3]} 28. Rxf8 {[%clk 0:00:08.7]} 28... Ne5 {[%clk 0:01:33.6]} 29. Bg2
{[%clk 0:00:07]} 29... Ng4+ {[%clk 0:01:33.6]} 30. Kh3 {[%clk 0:00:05.4]} 30...
Nxf2+ {[%clk 0:01:33.8]} 31. Kh2 {[%clk 0:00:05.8]} 31... Kg7 {[%clk 0:01:20.4]}
32. Rb8 {[%clk 0:00:04.5]} 32... Ng4+ {[%clk 0:01:17.8]} 33. Kh3 {[%clk
0:00:04.4]} 33... Bxg2+ {[%clk 0:01:18.1]} 34. Kxg4 {[%clk 0:00:02.6]} 34... Rf1
{[%clk 0:01:00.2]} 35. Nc7 {[%clk 0:00:01.7]} 35... f5+ {[%clk 0:00:58.7]} 36.
Kh4 {[%clk 0:00:01.3]} 36... Rh1# {[%clk 0:00:59.6]} 0-1

[Event "*** Titled Tuesday Blitz"]
[Site "Chess.com"]
[Date "2020.04.07"]
[Round "5"]
[White "varacalli"]
[Black "manubibi"]
[Result "1-0"]
[WhiteElo "2400"]
[BlackElo "2539"]
[TimeControl "180+1"]
[EndTime "13:55:55 PDT"]
[Termination "varacalli won by resignation"]

1. e4 {[%clk 0:03:00.9]} 1... c5 {[%clk 0:02:59.3]} 2. Nf3 {[%clk 0:03:00.3]}
2... d6 {[%clk 0:02:58.8]} 3. d4 {[%clk 0:03:00.4]} 3... cxd4 {[%clk 0:02:59.7]}
4. Nxd4 {[%clk 0:02:59.8]} 4... Nf6 {[%clk 0:02:57.9]} 5. Nc3 {[%clk 0:02:56.5]}
5... a6 {[%clk 0:02:58.2]} 6. f4 {[%clk 0:02:56.5]} 6... e5 {[%clk 0:02:57]} 7.
Nf3 {[%clk 0:02:52.7]} 7... Nbd7 {[%clk 0:02:52.6]} 8. a4 {[%clk 0:02:51.4]}
8... Be7 {[%clk 0:02:52.1]} 9. Bd3 {[%clk 0:02:51.9]} 9... O-O {[%clk
0:02:50.4]} 10. O-O {[%clk 0:02:52.5]} 10... exf4 {[%clk 0:02:41]} 11. Bxf4
{[%clk 0:02:53.4]} 11... Qb6+ {[%clk 0:02:39]} 12. Kh1 {[%clk 0:02:53.7]} 12...
Qxb2 {[%clk 0:02:39.2]} 13. Nd5 {[%clk 0:02:52.3]} 13... Nxd5 {[%clk 0:02:35]}
14. exd5 {[%clk 0:02:53.2]} 14... Qb6 {[%clk 0:02:33.2]} 15. Bg5 {[%clk
0:02:41.9]} 15... Qd8 {[%clk 0:02:31]} 16. Qd2 {[%clk 0:02:35.3]} 16... Ne5
{[%clk 0:02:25.2]} 17. Bxe7 {[%clk 0:02:28.5]} 17... Nxf3 {[%clk 0:02:14]} 18.
Rxf3 {[%clk 0:02:18.4]} 18... Qxe7 {[%clk 0:02:13.5]} 19. Raf1 {[%clk
0:02:18.9]} 19... Bd7 {[%clk 0:02:09.6]} 20. a5 {[%clk 0:02:18.8]} 20... Rae8
{[%clk 0:02:08.6]} 21. Qf4 {[%clk 0:02:11.7]} 21... Qe5 {[%clk 0:02:00.5]} 22.
Qb4 {[%clk 0:02:04.9]} 22... Bc8 {[%clk 0:01:35.4]} 23. h3 {[%clk 0:02:00.5]}
23... g6 {[%clk 0:01:35.5]} 24. Rf6 {[%clk 0:01:56.8]} 24... Rd8 {[%clk
0:01:32]} 25. Qh4 {[%clk 0:01:52.7]} 25... Kg7 {[%clk 0:01:21.6]} 26. c4 {[%clk
0:01:35.3]} 26... Bd7 {[%clk 0:01:09]} 27. Rxf7+ {[%clk 0:01:25.2]} 27... Rxf7
{[%clk 0:01:02.5]} 28. Rxf7+ {[%clk 0:01:26.1]} 28... Kxf7 {[%clk 0:01:02.6]}
29. Qxd8 {[%clk 0:01:26]} 29... Qe1+ {[%clk 0:00:52.1]} 30. Kh2 {[%clk
0:01:25.3]} 30... Qe5+ {[%clk 0:00:52.5]} 31. Kh1 {[%clk 0:01:25.2]} 31... Qe7
{[%clk 0:00:51.6]} 32. Qh8 {[%clk 0:01:15.9]} 32... Qe1+ {[%clk 0:00:50.3]} 33.
Kh2 {[%clk 0:01:12]} 33... Qe5+ {[%clk 0:00:50.7]} 34. Qxe5 {[%clk 0:01:12.1]}
34... dxe5 {[%clk 0:00:51.6]} 35. c5 {[%clk 0:01:05.3]} 35... Kf6 {[%clk
0:00:38.9]} 36. Kg3 {[%clk 0:01:03.9]} 36... e4 {[%clk 0:00:35.3]} 37. Bxe4
{[%clk 0:01:01.7]} 37... Ke5 {[%clk 0:00:36.2]} 38. Bf3 {[%clk 0:00:56.3]} 38...
Kd4 {[%clk 0:00:35.9]} 39. c6 {[%clk 0:00:54.6]} 39... bxc6 {[%clk 0:00:36]} 40.
dxc6 {[%clk 0:00:55.5]} 40... Bf5 {[%clk 0:00:28.6]} 41. Bg4 {[%clk 0:00:49.5]}
1-0

[Event "*** Titled Tuesday Blitz"]
[Site "Chess.com"]
[Date "2020.04.07"]
[Round "5"]
[White "hongnhung1234"]
[Black "Tomytoteph"]
[Result "1-0"]
[WhiteElo "2175"]
[BlackElo "2317"]
[TimeControl "180+1"]
[EndTime "13:55:57 PDT"]
[Termination "hongnhung1234 won by checkmate"]

1. e4 {[%clk 0:03:00.6]} 1... c5 {[%clk 0:02:57.5]} 2. Nc3 {[%clk 0:02:59.8]}
2... e6 {[%clk 0:02:56.6]} 3. f4 {[%clk 0:02:59.7]} 3... d5 {[%clk 0:02:55.2]}
4. Bb5+ {[%clk 0:02:57.4]} 4... Bd7 {[%clk 0:02:54.4]} 5. Bxd7+ {[%clk
0:02:52.3]} 5... Qxd7 {[%clk 0:02:55.3]} 6. Nf3 {[%clk 0:02:46.2]} 6... Be7
{[%clk 0:02:54.6]} 7. O-O {[%clk 0:02:45.2]} 7... d4 {[%clk 0:02:52.8]} 8. Ne2
{[%clk 0:02:43.5]} 8... Nf6 {[%clk 0:02:53.2]} 9. d3 {[%clk 0:02:42.4]} 9... O-O
{[%clk 0:02:52.4]} 10. h3 {[%clk 0:02:41.4]} 10... Nc6 {[%clk 0:02:49.4]} 11.
Qe1 {[%clk 0:02:41.5]} 11... b5 {[%clk 0:02:39.5]} 12. Qg3 {[%clk 0:02:30.1]}
12... Nh5 {[%clk 0:02:36.7]} 13. Qg4 {[%clk 0:02:28.6]} 13... Nf6 {[%clk
0:02:36]} 14. Qg3 {[%clk 0:02:28.6]} 14... Nb4 {[%clk 0:02:27.5]} 15. f5 {[%clk
0:02:17.5]} 15... Nxc2 {[%clk 0:02:24.9]} 16. Bh6 {[%clk 0:02:12.8]} 16... g6
{[%clk 0:01:49.4]} 17. Ne5 {[%clk 0:01:57.9]} 17... Qc7 {[%clk 0:01:44.3]} 18.
Rac1 {[%clk 0:01:38.2]} 18... Ne3 {[%clk 0:01:42.2]} 19. Bxe3 {[%clk 0:01:35.3]}
19... dxe3 {[%clk 0:01:41.2]} 20. Nxg6 {[%clk 0:01:35.2]} 20... Bd6 {[%clk
0:01:33.9]} 21. e5 {[%clk 0:01:10.9]} 21... fxg6 {[%clk 0:01:30.8]} 22. exd6
{[%clk 0:01:09.8]} 22... Qg7 {[%clk 0:01:30.5]} 23. fxe6 {[%clk 0:01:09]} 23...
Rfe8 {[%clk 0:01:20.1]} 24. Qxe3 {[%clk 0:01:07.2]} 24... Nd5 {[%clk 0:01:19]}
25. Qxc5 {[%clk 0:01:04.2]} 25... Nb6 {[%clk 0:01:12.9]} 26. Nf4 {[%clk
0:01:00.7]} 26... Qxb2 {[%clk 0:01:08.6]} 27. d7 {[%clk 0:00:57.7]} 27... Red8
{[%clk 0:01:07.3]} 28. Nd5 {[%clk 0:00:50.1]} 28... Qxa2 {[%clk 0:01:03.8]} 29.
Nxb6 {[%clk 0:00:34.4]} 29... axb6 {[%clk 0:01:01.3]} 30. Qe7 {[%clk 0:00:28.3]}
30... Qb2 {[%clk 0:00:48.2]} 31. Qf7+ {[%clk 0:00:25.9]} 31... Kh8 {[%clk
0:00:47.3]} 32. e7 {[%clk 0:00:16.5]} 32... Rxd7 {[%clk 0:00:44.3]} 33. e8=Q+
{[%clk 0:00:15.7]} 33... Rxe8 {[%clk 0:00:44.4]} 34. Qxe8+ {[%clk 0:00:16.2]}
34... Kg7 {[%clk 0:00:45.3]} 35. Qf8# {[%clk 0:00:16.8]} 1-0